[Event "*** Titled Tuesday Blitz"]
[Site "Chess.com"]
[Date "2021.02.09"]
[Round "3"]
[White "StockholmMissile"]
[Black "andy_rekt"]
[Result "1-0"]
[WhiteElo "2496"]
[BlackElo "2240"]
[TimeControl "180+1"]
[EndTime "10:29:20 PST"]
[Termination "StockholmMissile won by resignation"]

1. d4 {[%clk 0:02:59.6]} 1... f5 {[%clk 0:02:59.2]} 2. Nf3 {[%clk 0:02:57.4]}
2... Nf6 {[%clk 0:02:59.8]} 3. Bg5 {[%clk 0:02:56.9]} 3... Ne4 {[%clk
0:02:59.2]} 4. h4 {[%clk 0:02:52.3]} 4... h6 {[%clk 0:02:58.1]} 5. Bf4 {[%clk
0:02:52]} 5... g6 {[%clk 0:02:58]} 6. Nbd2 {[%clk 0:02:51.4]} 6... d6 {[%clk
0:02:56.1]} 7. e3 {[%clk 0:02:50.8]} 7... Bg7 {[%clk 0:02:52.6]} 8. Bd3 {[%clk
0:02:44.5]} 8... Nxd2 {[%clk 0:02:50]} 9. Qxd2 {[%clk 0:02:39.3]} 9... Nc6
{[%clk 0:02:50.4]} 10. Bg3 {[%clk 0:02:32.3]} 10... e5 {[%clk 0:02:46.9]} 11.
dxe5 {[%clk 0:02:30.8]} 11... dxe5 {[%clk 0:02:47.8]} 12. Bb5 {[%clk 0:02:29.9]}
12... Qxd2+ {[%clk 0:02:46.6]} 13. Kxd2 {[%clk 0:02:29]} 13... Bd7 {[%clk
0:02:14.3]} 14. Bxc6 {[%clk 0:02:23.1]} 14... Bxc6 {[%clk 0:02:15.2]} 15. Bxe5
{[%clk 0:01:52.4]} 15... O-O-O+ {[%clk 0:02:10.8]} 16. Kc3 {[%clk 0:01:42.8]}
16... Bxf3 {[%clk 0:01:38.7]} 17. Bxg7 {[%clk 0:01:41.3]} 17... Bxg2 {[%clk
0:01:39]} 18. Rhg1 {[%clk 0:01:15.4]} 18... Rh7 {[%clk 0:01:24.7]} 19. Bxh6
{[%clk 0:00:55.7]} 19... Rxh6 {[%clk 0:01:15.4]} 20. Rxg2 {[%clk 0:00:55.7]}
20... Rxh4 {[%clk 0:01:14.2]} 21. Rxg6 {[%clk 0:00:55.5]} 21... Rh2 {[%clk
0:01:13.5]} 22. Rf1 {[%clk 0:00:55.7]} 22... Rh3 {[%clk 0:00:52.9]} 23. Rf6
{[%clk 0:00:51.9]} 23... Rf3 {[%clk 0:00:51.2]} 24. b3 {[%clk 0:00:38.2]} 24...
a5 {[%clk 0:00:43.2]} 25. a4 {[%clk 0:00:37]} 25... c6 {[%clk 0:00:42.1]} 26.
Rf7 {[%clk 0:00:31.4]} 26... Kb8 {[%clk 0:00:39.4]} 27. Rg7 {[%clk 0:00:28]}
27... Ka7 {[%clk 0:00:21.2]} 28. Rg3 {[%clk 0:00:27.5]} 28... Rxg3 {[%clk
0:00:18.8]} 29. fxg3 {[%clk 0:00:28.4]} 29... Rg8 {[%clk 0:00:15.6]} 30. Rxf5
{[%clk 0:00:28.4]} 30... Rxg3 {[%clk 0:00:15.4]} 31. Rxa5+ {[%clk 0:00:28.9]}
31... Kb6 {[%clk 0:00:15.9]} 32. Re5 {[%clk 0:00:29.8]} 32... Kc7 {[%clk
0:00:14.3]} 33. Kd3 {[%clk 0:00:28]} 33... Kd6 {[%clk 0:00:14.5]} 34. Re8 {[%clk
0:00:27]} 34... Kc5 {[%clk 0:00:12.9]} 35. Re7 {[%clk 0:00:25.6]} 35... b5
{[%clk 0:00:10.1]} 36. a5 {[%clk 0:00:16.4]} 36... b4 {[%clk 0:00:09.8]} 37. a6
{[%clk 0:00:14.6]} 37... Kb6 {[%clk 0:00:09.3]} 38. a7 {[%clk 0:00:15.1]} 38...
Rg8 {[%clk 0:00:08.7]} 39. e4 {[%clk 0:00:15.4]} 39... Rd8+ {[%clk 0:00:06.5]}
40. Ke3 {[%clk 0:00:15.7]} 40... Kc5 {[%clk 0:00:05.6]} 41. Kf4 {[%clk
0:00:12.7]} 41... Kd4 {[%clk 0:00:03.9]} 42. Rd7+ {[%clk 0:00:08.8]} 42... Rxd7
{[%clk 0:00:04.3]} 43. a8=Q {[%clk 0:00:09.3]} 43... Rf7+ {[%clk 0:00:04.3]} 44.
Kg5 {[%clk 0:00:09.5]} 1-0

[Event "*** Titled Tuesday Blitz"]
[Site "Chess.com"]
[Date "2021.02.09"]
[Round "3"]
[White "chess4life23"]
[Black "Vincent_Vega95"]
[Result "1/2-1/2"]
[WhiteElo "2334"]
[BlackElo "2720"]
[TimeControl "180+1"]
[EndTime "10:29:21 PST"]
[Termination "Game drawn - insufficient material"]

1. d4 {[%clk 0:03:00.9]} 1... Nf6 {[%clk 0:02:59.9]} 2. c4 {[%clk 0:03:00.9]}
2... g6 {[%clk 0:03:00.4]} 3. Nc3 {[%clk 0:02:59.6]} 3... Bg7 {[%clk 0:03:01.1]}
4. e4 {[%clk 0:02:59.8]} 4... d6 {[%clk 0:03:01.2]} 5. Be2 {[%clk 0:03:00.3]}
5... O-O {[%clk 0:03:01.6]} 6. Nf3 {[%clk 0:03:00.8]} 6... e5 {[%clk 0:03:01.1]}
7. O-O {[%clk 0:03:01.3]} 7... Nbd7 {[%clk 0:03:00.9]} 8. Re1 {[%clk 0:03:00.3]}
8... a6 {[%clk 0:02:58]} 9. Bf1 {[%clk 0:02:59.7]} 9... Rb8 {[%clk 0:02:54.5]}
10. Qc2 {[%clk 0:02:58.3]} 10... h6 {[%clk 0:02:46.8]} 11. h3 {[%clk 0:02:56.3]}
11... exd4 {[%clk 0:02:41.4]} 12. Nxd4 {[%clk 0:02:55.2]} 12... Re8 {[%clk
0:02:41.8]} 13. Be3 {[%clk 0:02:54.5]} 13... Nc5 {[%clk 0:02:41.9]} 14. f3
{[%clk 0:02:50.5]} 14... Bd7 {[%clk 0:02:41.8]} 15. Rad1 {[%clk 0:02:41]} 15...
Nh5 {[%clk 0:02:35.6]} 16. Qf2 {[%clk 0:02:33.4]} 16... a5 {[%clk 0:02:20.9]}
17. g4 {[%clk 0:02:32.8]} 17... Nf6 {[%clk 0:02:20.4]} 18. Bg2 {[%clk
0:02:18.9]} 18... b6 {[%clk 0:02:07.8]} 19. Qd2 {[%clk 0:02:18.5]} 19... h5
{[%clk 0:01:59.9]} 20. Bg5 {[%clk 0:02:11.8]} 20... Qc8 {[%clk 0:01:53.9]} 21.
Nd5 {[%clk 0:01:34.8]} 21... Nh7 {[%clk 0:01:31.3]} 22. gxh5 {[%clk 0:01:09]}
22... Bxd4+ {[%clk 0:00:47.3]} 23. Qxd4 {[%clk 0:01:08.8]} 23... Ne6 {[%clk
0:00:46.4]} 24. Nf6+ {[%clk 0:00:59]} 24... Nxf6 {[%clk 0:00:46.5]} 25. Qxf6
{[%clk 0:00:58.3]} 25... Nxg5 {[%clk 0:00:46.8]} 26. Qxg5 {[%clk 0:00:58.2]}
26... Re5 {[%clk 0:00:47.1]} 27. Qg3 {[%clk 0:00:49.6]} 27... Rxh5 {[%clk
0:00:47.1]} 28. h4 {[%clk 0:00:50.1]} 28... Qd8 {[%clk 0:00:41.8]} 29. e5 {[%clk
0:00:41.4]} 29... Qxh4 {[%clk 0:00:26.8]} 30. Qxh4 {[%clk 0:00:39.9]} 30... Rxh4
{[%clk 0:00:27.7]} 31. exd6 {[%clk 0:00:40]} 31... cxd6 {[%clk 0:00:28.6]} 32.
Rxd6 {[%clk 0:00:38.4]} 32... Be6 {[%clk 0:00:28.5]} 33. b3 {[%clk 0:00:35.8]}
33... Kf8 {[%clk 0:00:26.2]} 34. Red1 {[%clk 0:00:31.3]} 34... Ke7 {[%clk
0:00:25]} 35. Kf2 {[%clk 0:00:31.7]} 35... g5 {[%clk 0:00:24.4]} 36. R1d2 {[%clk
0:00:30.1]} 36... Rf4 {[%clk 0:00:24.7]} 37. Kg3 {[%clk 0:00:28.3]} 37... a4
{[%clk 0:00:24.6]} 38. Bf1 {[%clk 0:00:22.1]} 38... a3 {[%clk 0:00:22.9]} 39. b4
{[%clk 0:00:20.4]} 39... Rb7 {[%clk 0:00:21.2]} 40. c5 {[%clk 0:00:16.9]} 40...
bxc5 {[%clk 0:00:19.6]} 41. bxc5 {[%clk 0:00:17.8]} 41... Rb2 {[%clk 0:00:20]}
42. Rxb2 {[%clk 0:00:11.3]} 42... axb2 {[%clk 0:00:20.1]} 43. Rb6 {[%clk
0:00:11.9]} 43... Bd5 {[%clk 0:00:17]} 44. Be2 {[%clk 0:00:10.6]} 44... Ra4
{[%clk 0:00:12.1]} 45. Rxb2 {[%clk 0:00:10.5]} 45... Rxa2 {[%clk 0:00:12.7]} 46.
Rxa2 {[%clk 0:00:10.8]} 46... Bxa2 {[%clk 0:00:13]} 47. Kg4 {[%clk 0:00:11]}
47... f6 {[%clk 0:00:13.7]} 48. f4 {[%clk 0:00:11.4]} 48... gxf4 {[%clk
0:00:13.3]} 49. Kxf4 {[%clk 0:00:11.8]} 49... Bd5 {[%clk 0:00:13.9]} 50. Bf3
{[%clk 0:00:11.3]} 50... Bxf3 {[%clk 0:00:13.3]} 51. Kxf3 {[%clk 0:00:12.2]}
51... Kd7 {[%clk 0:00:13.9]} 52. Kf4 {[%clk 0:00:12.5]} 52... Kc6 {[%clk
0:00:14.6]} 53. Kf5 {[%clk 0:00:13]} 53... Kxc5 {[%clk 0:00:15.5]} 54. Kxf6
{[%clk 0:00:13.5]} 1/2-1/2

[Event "*** Titled Tuesday Blitz"]
[Site "Chess.com"]
[Date "2021.02.09"]
[Round "3"]
[White "KubaGepard"]
[Black "FMalexhdez"]
[Result "1-0"]
[WhiteElo "2353"]
[BlackElo "2170"]
[TimeControl "180+1"]
[EndTime "10:29:22 PST"]
[Termination "KubaGepard won on time"]

1. e4 {[%clk 0:03:00.9]} 1... c5 {[%clk 0:02:55.6]} 2. Nf3 {[%clk 0:02:59.6]}
2... d6 {[%clk 0:02:56.1]} 3. Nc3 {[%clk 0:02:58.8]} 3... Nf6 {[%clk 0:02:53.9]}
4. d4 {[%clk 0:02:57.9]} 4... cxd4 {[%clk 0:02:53.9]} 5. Nxd4 {[%clk 0:02:58.4]}
5... a6 {[%clk 0:02:54.5]} 6. Be3 {[%clk 0:02:57.7]} 6... e5 {[%clk 0:02:53.8]}
7. Nf3 {[%clk 0:02:57.8]} 7... Be7 {[%clk 0:02:49.7]} 8. Bc4 {[%clk 0:02:57.9]}
8... Be6 {[%clk 0:02:45.4]} 9. Bb3 {[%clk 0:02:55.6]} 9... O-O {[%clk
0:02:44.2]} 10. a4 {[%clk 0:02:53.1]} 10... Ng4 {[%clk 0:02:19.1]} 11. Nd5
{[%clk 0:02:30.1]} 11... Nxe3 {[%clk 0:02:15.3]} 12. Nxe3 {[%clk 0:02:27.7]}
12... Nd7 {[%clk 0:02:06.7]} 13. O-O {[%clk 0:02:23.8]} 13... Nc5 {[%clk
0:01:49.8]} 14. Bd5 {[%clk 0:02:23.1]} 14... Qc7 {[%clk 0:01:40.9]} 15. a5
{[%clk 0:02:17.7]} 15... Rac8 {[%clk 0:01:39.9]} 16. c3 {[%clk 0:02:14.3]} 16...
g6 {[%clk 0:01:30.6]} 17. Nd2 {[%clk 0:01:46.8]} 17... Nd3 {[%clk 0:01:26.9]}
18. Ndc4 {[%clk 0:01:36.5]} 18... Nf4 {[%clk 0:01:21.7]} 19. Nb6 {[%clk
0:01:35.6]} 19... Rcd8 {[%clk 0:01:20.7]} 20. g3 {[%clk 0:01:31.8]} 20... Nxd5
{[%clk 0:00:57.3]} 21. Nexd5 {[%clk 0:01:28]} 21... Bxd5 {[%clk 0:00:56.4]} 22.
Nxd5 {[%clk 0:01:28.4]} 22... Qd7 {[%clk 0:00:55.2]} 23. Ra4 {[%clk 0:01:19.9]}
23... f5 {[%clk 0:00:53.3]} 24. Rb4 {[%clk 0:01:16.9]} 24... fxe4 {[%clk
0:00:49]} 25. Qe2 {[%clk 0:01:05.2]} 25... Bg5 {[%clk 0:00:47.7]} 26. Qxe4
{[%clk 0:01:02.8]} 26... Rf7 {[%clk 0:00:43.3]} 27. h4 {[%clk 0:01:01.3]} 27...
Bh6 {[%clk 0:00:41.7]} 28. Qc4 {[%clk 0:00:52.6]} 28... Kg7 {[%clk 0:00:37.5]}
29. Kg2 {[%clk 0:00:39.9]} 29... Rdf8 {[%clk 0:00:36.9]} 30. Rb6 {[%clk
0:00:35.1]} 30... Qe6 {[%clk 0:00:16.1]} 31. Qe4 {[%clk 0:00:21.5]} 31... Rc8
{[%clk 0:00:13.9]} 32. Ne3 {[%clk 0:00:17.9]} 32... Rc5 {[%clk 0:00:12.4]} 33.
b4 {[%clk 0:00:17.1]} 33... Bxe3 {[%clk 0:00:11.5]} 34. bxc5 {[%clk 0:00:14.1]}
34... Bxc5 {[%clk 0:00:11.1]} 35. Rxb7 {[%clk 0:00:13.9]} 35... d5 {[%clk
0:00:10.3]} 36. Rxf7+ {[%clk 0:00:12.7]} 36... Kxf7 {[%clk 0:00:10.9]} 37. Qf3+
{[%clk 0:00:12.9]} 37... Kg7 {[%clk 0:00:11.1]} 38. Rb1 {[%clk 0:00:13.2]} 38...
e4 {[%clk 0:00:10.1]} 39. Rb7+ {[%clk 0:00:13.1]} 39... Kg8 {[%clk 0:00:09]} 40.
Qf4 {[%clk 0:00:13.2]} 40... Bd6 {[%clk 0:00:07.8]} 41. Qh6 {[%clk 0:00:13.1]}
41... Qf6 {[%clk 0:00:05.8]} 42. Rb6 {[%clk 0:00:09.1]} 42... e3 {[%clk
0:00:04.5]} 43. fxe3 {[%clk 0:00:08.2]} 43... Qe5 {[%clk 0:00:01.5]} 44. Qf4
{[%clk 0:00:07.5]} 1-0

[Event "*** Titled Tuesday Blitz"]
[Site "Chess.com"]
[Date "2021.02.09"]
[Round "3"]
[White "PawnEatingZombie"]
[Black "MillyNeuf"]
[Result "1-0"]
[WhiteElo "2119"]
[BlackElo "2308"]
[TimeControl "180+1"]
[EndTime "10:29:24 PST"]
[Termination "PawnEatingZombie won by checkmate"]

1. d4 {[%clk 0:03:00.9]} 1... Nf6 {[%clk 0:02:58.5]} 2. c4 {[%clk 0:03:01.2]}
2... e6 {[%clk 0:02:58.6]} 3. Nc3 {[%clk 0:03:01.6]} 3... Bb4 {[%clk 0:02:58.7]}
4. Qc2 {[%clk 0:03:01.8]} 4... O-O {[%clk 0:02:58.4]} 5. e4 {[%clk 0:03:01.3]}
5... d5 {[%clk 0:02:58.6]} 6. e5 {[%clk 0:03:01.4]} 6... Ne4 {[%clk 0:02:58.9]}
7. Bd3 {[%clk 0:03:01.8]} 7... c5 {[%clk 0:02:58.7]} 8. Nf3 {[%clk 0:03:02.1]}
8... cxd4 {[%clk 0:02:54.3]} 9. Nxd4 {[%clk 0:03:03]} 9... Nd7 {[%clk
0:02:51.2]} 10. Bf4 {[%clk 0:03:02.5]} 10... Qh4 {[%clk 0:02:47.1]} 11. g3
{[%clk 0:03:02.5]} 11... Qh5 {[%clk 0:02:44.7]} 12. h4 {[%clk 0:03:02.5]} 12...
Ndc5 {[%clk 0:02:38.7]} 13. Be2 {[%clk 0:02:37.5]} 13... Nxc3 {[%clk 0:01:10.4]}
14. bxc3 {[%clk 0:02:27.2]} 14... Qg6 {[%clk 0:01:08.9]} 15. cxb4 {[%clk
0:02:22.3]} 15... Qxc2 {[%clk 0:01:07.6]} 16. Nxc2 {[%clk 0:02:21.9]} 16... Ne4
{[%clk 0:01:07.1]} 17. Bf3 {[%clk 0:02:04.5]} 17... Bd7 {[%clk 0:01:03.7]} 18.
Bxe4 {[%clk 0:02:03.7]} 18... dxe4 {[%clk 0:01:04]} 19. O-O-O {[%clk 0:01:54.1]}
19... Ba4 {[%clk 0:01:02]} 20. Rd6 {[%clk 0:01:52.8]} 20... Rac8 {[%clk
0:00:58.2]} 21. Ne3 {[%clk 0:01:53.3]} 21... Rfd8 {[%clk 0:00:54.4]} 22. Kb2
{[%clk 0:01:48.4]} 22... Kf8 {[%clk 0:00:49.3]} 23. c5 {[%clk 0:01:46.6]} 23...
Ke7 {[%clk 0:00:45.2]} 24. Bg5+ {[%clk 0:01:45.2]} 24... f6 {[%clk 0:00:45.6]}
25. exf6+ {[%clk 0:01:43.2]} 25... gxf6 {[%clk 0:00:46.5]} 26. Bf4 {[%clk
0:01:21.3]} 26... e5 {[%clk 0:00:46.5]} 27. Nd5+ {[%clk 0:01:06.8]} 27... Kf7
{[%clk 0:00:44.6]} 28. Be3 {[%clk 0:01:04.9]} 28... Rxd6 {[%clk 0:00:41.1]} 29.
cxd6 {[%clk 0:01:05.8]} 29... Rc2+ {[%clk 0:00:40.9]} 30. Ka3 {[%clk 0:01:05.7]}
30... b5 {[%clk 0:00:39.3]} 31. Rc1 {[%clk 0:01:03.7]} 31... Rxc1 {[%clk
0:00:28.6]} 32. Bxc1 {[%clk 0:01:02.5]} 32... Ke6 {[%clk 0:00:29.5]} 33. Nc3
{[%clk 0:00:59.9]} 33... Bc2 {[%clk 0:00:26.8]} 34. Nxb5 {[%clk 0:00:59.2]}
34... a6 {[%clk 0:00:26.7]} 35. Nc7+ {[%clk 0:00:57.1]} 35... Kxd6 {[%clk
0:00:25.3]} 36. Nxa6 {[%clk 0:00:57]} 36... f5 {[%clk 0:00:23.8]} 37. Nc5 {[%clk
0:00:56.5]} 37... Kd5 {[%clk 0:00:23.3]} 38. Kb2 {[%clk 0:00:55.3]} 38... Bd1
{[%clk 0:00:22.2]} 39. Kc3 {[%clk 0:00:54.7]} 39... Bh5 {[%clk 0:00:14.7]} 40.
a4 {[%clk 0:00:54.4]} 40... Be8 {[%clk 0:00:15.6]} 41. a5 {[%clk 0:00:53.9]}
41... Bb5 {[%clk 0:00:15.4]} 42. a6 {[%clk 0:00:53.7]} 42... Kc6 {[%clk
0:00:12.8]} 43. Bg5 {[%clk 0:00:45.2]} 43... Kb6 {[%clk 0:00:12.3]} 44. Bf6
{[%clk 0:00:44.9]} 44... Bxa6 {[%clk 0:00:12.1]} 45. Nxa6 {[%clk 0:00:44.9]}
45... Kxa6 {[%clk 0:00:13]} 46. Bxe5 {[%clk 0:00:45.2]} 46... Kb5 {[%clk
0:00:13.9]} 47. Bd6 {[%clk 0:00:44.7]} 47... h5 {[%clk 0:00:14.7]} 48. Kd4
{[%clk 0:00:43.4]} 48... Kc6 {[%clk 0:00:14.8]} 49. Bc5 {[%clk 0:00:43]} 49...
e3 {[%clk 0:00:15.7]} 50. fxe3 {[%clk 0:00:42.2]} 50... f4 {[%clk 0:00:15.7]}
51. exf4 {[%clk 0:00:41.6]} 51... Kd7 {[%clk 0:00:16.3]} 52. Ke5 {[%clk
0:00:41.9]} 52... Ke8 {[%clk 0:00:16.3]} 53. Kf6 {[%clk 0:00:42.1]} 53... Kd7
{[%clk 0:00:16.4]} 54. Kg5 {[%clk 0:00:42.3]} 54... Kc6 {[%clk 0:00:17.3]} 55.
Kxh5 {[%clk 0:00:42.8]} 55... Kd7 {[%clk 0:00:18.2]} 56. Kg6 {[%clk 0:00:43.3]}
56... Ke8 {[%clk 0:00:19.1]} 57. Kg7 {[%clk 0:00:43.9]} 57... Kd7 {[%clk
0:00:19.2]} 58. h5 {[%clk 0:00:44.6]} 58... Ke6 {[%clk 0:00:20.1]} 59. h6 {[%clk
0:00:45.2]} 59... Kf5 {[%clk 0:00:21]} 60. h7 {[%clk 0:00:45]} 60... Kg4 {[%clk
0:00:21.9]} 61. h8=Q {[%clk 0:00:44.6]} 61... Kf3 {[%clk 0:00:22.8]} 62. f5
{[%clk 0:00:44.6]} 62... Kg2 {[%clk 0:00:23.7]} 63. f6 {[%clk 0:00:45.2]} 63...
Kf3 {[%clk 0:00:24.6]} 64. f7 {[%clk 0:00:45.5]} 64... Kg2 {[%clk 0:00:25.5]}
65. f8=Q {[%clk 0:00:45.9]} 65... Kxg3 {[%clk 0:00:25.3]} 66. Qd6+ {[%clk
0:00:44.5]} 66... Kg2 {[%clk 0:00:26.2]} 67. Qa8+ {[%clk 0:00:42.4]} 67... Kf1
{[%clk 0:00:24.7]} 68. Qa2 {[%clk 0:00:38.2]} 68... Ke1 {[%clk 0:00:24.6]} 69.
Qdd2+ {[%clk 0:00:37.8]} 69... Kf1 {[%clk 0:00:24.4]} 70. Qf2# {[%clk
0:00:38.4]} 1-0

[Event "*** Titled Tuesday Blitz"]
[Site "Chess.com"]
[Date "2021.02.09"]
[Round "3"]
[White "JQuiroga18"]
[Black "Vesper2018"]
[Result "1-0"]
[WhiteElo "2423"]
[BlackElo "2586"]
[TimeControl "180+1"]
[EndTime "10:29:27 PST"]
[Termination "JQuiroga18 won by resignation"]

1. e4 {[%clk 0:03:00.9]} 1... c5 {[%clk 0:02:59.5]} 2. Nf3 {[%clk 0:03:00.2]}
2... d6 {[%clk 0:02:59.4]} 3. d4 {[%clk 0:02:59.8]} 3... cxd4 {[%clk 0:02:59.6]}
4. Nxd4 {[%clk 0:03:00.7]} 4... Nf6 {[%clk 0:03:00]} 5. Nc3 {[%clk 0:03:00.9]}
5... a6 {[%clk 0:02:59.4]} 6. g3 {[%clk 0:03:01.2]} 6... e5 {[%clk 0:02:56.7]}
7. Nde2 {[%clk 0:03:01.1]} 7... Be7 {[%clk 0:02:56.6]} 8. Bg2 {[%clk 0:03:01.2]}
8... b5 {[%clk 0:02:54.7]} 9. h3 {[%clk 0:02:53.4]} 9... Bb7 {[%clk 0:02:52.7]}
10. g4 {[%clk 0:02:51.5]} 10... b4 {[%clk 0:02:47.9]} 11. Nd5 {[%clk 0:02:50.9]}
11... Nxd5 {[%clk 0:02:48.1]} 12. exd5 {[%clk 0:02:51.8]} 12... Nd7 {[%clk
0:02:48]} 13. O-O {[%clk 0:02:50.1]} 13... O-O {[%clk 0:02:45.2]} 14. a3 {[%clk
0:02:50.1]} 14... a5 {[%clk 0:02:42.2]} 15. Bd2 {[%clk 0:02:44.9]} 15... Qb6
{[%clk 0:02:35.1]} 16. c4 {[%clk 0:02:36.6]} 16... Nc5 {[%clk 0:02:27.2]} 17.
Ng3 {[%clk 0:02:21.1]} 17... g6 {[%clk 0:02:18.3]} 18. Be3 {[%clk 0:02:12.4]}
18... Qc7 {[%clk 0:02:09.3]} 19. b3 {[%clk 0:02:00.4]} 19... Rfd8 {[%clk
0:01:53.6]} 20. a4 {[%clk 0:01:58.4]} 20... Rd7 {[%clk 0:01:44.2]} 21. Ne4
{[%clk 0:01:52.2]} 21... Rf8 {[%clk 0:01:35]} 22. Bh6 {[%clk 0:01:50.2]} 22...
Re8 {[%clk 0:01:30.2]} 23. Be3 {[%clk 0:01:27.9]} 23... Qd8 {[%clk 0:01:16.2]}
24. Nxc5 {[%clk 0:01:17.8]} 24... dxc5 {[%clk 0:01:15.8]} 25. Be4 {[%clk
0:01:18.1]} 25... Bd6 {[%clk 0:01:07.9]} 26. Qc2 {[%clk 0:01:15.2]} 26... Qh4
{[%clk 0:01:03.4]} 27. Kg2 {[%clk 0:01:11.2]} 27... f6 {[%clk 0:01:01.5]} 28. f3
{[%clk 0:01:10.7]} 28... Rf7 {[%clk 0:00:57.9]} 29. Bf2 {[%clk 0:01:10.5]} 29...
Qh6 {[%clk 0:00:57.6]} 30. Qc1 {[%clk 0:01:09.7]} 30... Qxc1 {[%clk 0:00:47.7]}
31. Raxc1 {[%clk 0:01:09]} 31... f5 {[%clk 0:00:48.2]} 32. Bc2 {[%clk
0:01:07.7]} 32... Bc8 {[%clk 0:00:40.8]} 33. Rce1 {[%clk 0:01:06.5]} 33... e4
{[%clk 0:00:30.5]} 34. gxf5 {[%clk 0:00:36.7]} 34... exf3+ {[%clk 0:00:29.4]}
35. Kxf3 {[%clk 0:00:36.1]} 35... Ref8 {[%clk 0:00:23.3]} 36. Kg2 {[%clk
0:00:28.5]} 36... Bxf5 {[%clk 0:00:22.8]} 37. Bxf5 {[%clk 0:00:28]} 37... Rxf5
{[%clk 0:00:23.3]} 38. Bh4 {[%clk 0:00:25.9]} 38... g5 {[%clk 0:00:11.5]} 39.
Rxf5 {[%clk 0:00:24.7]} 39... Rxf5 {[%clk 0:00:11.7]} 40. Bg3 {[%clk 0:00:22.3]}
40... Bf8 {[%clk 0:00:06.2]} 41. Re8 {[%clk 0:00:20.2]} 41... Kf7 {[%clk
0:00:05.8]} 42. Ra8 {[%clk 0:00:20.2]} 42... Rf6 {[%clk 0:00:05.4]} 43. Rxa5
{[%clk 0:00:19.3]} 43... h5 {[%clk 0:00:05.1]} 44. Ra7+ {[%clk 0:00:19]} 44...
Kg6 {[%clk 0:00:04.7]} 45. Rc7 {[%clk 0:00:14.9]} 45... g4 {[%clk 0:00:04.1]}
46. hxg4 {[%clk 0:00:14.5]} 46... hxg4 {[%clk 0:00:04.1]} 47. Rc6 {[%clk
0:00:14]} 47... Kf5 {[%clk 0:00:04.3]} 48. Rxf6+ {[%clk 0:00:13.5]} 48... Kxf6
{[%clk 0:00:04.6]} 49. a5 {[%clk 0:00:13.4]} 49... Kf5 {[%clk 0:00:03.7]} 50. a6
{[%clk 0:00:13.4]} 1-0

[Event "*** Titled Tuesday Blitz"]
[Site "Chess.com"]
[Date "2021.02.09"]
[Round "3"]
[White "chenxiaoyuer"]
[Black "LimeInTheCoconut"]
[Result "0-1"]
[WhiteElo "2486"]
[BlackElo "2306"]
[TimeControl "180+1"]
[EndTime "10:29:27 PST"]
[Termination "LimeInTheCoconut won by checkmate"]

1. e4 {[%clk 0:03:00.9]} 1... c5 {[%clk 0:02:55.8]} 2. Nf3 {[%clk 0:03:00.8]}
2... e6 {[%clk 0:02:50.2]} 3. d4 {[%clk 0:03:00.6]} 3... cxd4 {[%clk 0:02:50.4]}
4. Nxd4 {[%clk 0:03:01.5]} 4... Nf6 {[%clk 0:02:49]} 5. Nc3 {[%clk 0:03:01.1]}
5... Nc6 {[%clk 0:02:49.4]} 6. Ndb5 {[%clk 0:03:00.3]} 6... d6 {[%clk
0:02:47.5]} 7. Bf4 {[%clk 0:02:59.8]} 7... e5 {[%clk 0:02:46.7]} 8. Bg5 {[%clk
0:03:00.1]} 8... a6 {[%clk 0:02:47.1]} 9. Na3 {[%clk 0:03:00.2]} 9... b5 {[%clk
0:02:45.7]} 10. Nd5 {[%clk 0:03:00.5]} 10... Be7 {[%clk 0:02:40.3]} 11. Bxf6
{[%clk 0:03:00.4]} 11... Bxf6 {[%clk 0:02:41.2]} 12. c4 {[%clk 0:03:01]} 12...
O-O {[%clk 0:02:34.4]} 13. cxb5 {[%clk 0:02:42.1]} 13... Nd4 {[%clk 0:02:28.5]}
14. b6 {[%clk 0:02:22.6]} 14... Bb7 {[%clk 0:01:50.8]} 15. Bc4 {[%clk
0:02:17.6]} 15... Bg5 {[%clk 0:01:38.9]} 16. O-O {[%clk 0:02:14]} 16... Rb8
{[%clk 0:01:34.9]} 17. Qd3 {[%clk 0:01:45.7]} 17... Bxd5 {[%clk 0:01:32.7]} 18.
Bxd5 {[%clk 0:01:46.6]} 18... Qxb6 {[%clk 0:01:21.4]} 19. Nc4 {[%clk 0:01:46.2]}
19... Qb4 {[%clk 0:01:06.3]} 20. f4 {[%clk 0:01:15.1]} 20... Bf6 {[%clk
0:00:51.2]} 21. fxe5 {[%clk 0:01:08]} 21... Bxe5 {[%clk 0:00:52.1]} 22. Rf2
{[%clk 0:01:00.6]} 22... Ne6 {[%clk 0:00:45]} 23. Raf1 {[%clk 0:00:52.5]} 23...
Bd4 {[%clk 0:00:38.5]} 24. Qh3 {[%clk 0:00:31.3]} 24... Nf4 {[%clk 0:00:27.4]}
25. Qf5 {[%clk 0:00:24.7]} 25... Bxf2+ {[%clk 0:00:25.9]} 26. Rxf2 {[%clk
0:00:21.6]} 26... Nxd5 {[%clk 0:00:20.2]} 27. Qxd5 {[%clk 0:00:22]} 27... Rbc8
{[%clk 0:00:13.1]} 28. b3 {[%clk 0:00:21.1]} 28... Qc5 {[%clk 0:00:12.3]} 29.
Qd3 {[%clk 0:00:16.9]} 29... f5 {[%clk 0:00:10.7]} 30. exf5 {[%clk 0:00:15.5]}
30... Rce8 {[%clk 0:00:11.2]} 31. Kf1 {[%clk 0:00:14.9]} 31... d5 {[%clk
0:00:09.7]} 32. Nb2 {[%clk 0:00:11.3]} 32... Qc1+ {[%clk 0:00:09.6]} 33. Nd1
{[%clk 0:00:11.4]} 33... Kh8 {[%clk 0:00:06.2]} 34. g3 {[%clk 0:00:11.2]} 34...
d4 {[%clk 0:00:04.9]} 35. Rc2 {[%clk 0:00:09.9]} 35... Qa1 {[%clk 0:00:04.4]}
36. Kg2 {[%clk 0:00:09.4]} 36... Rd8 {[%clk 0:00:04.1]} 37. Nf2 {[%clk
0:00:09.2]} 37... Qb1 {[%clk 0:00:04.6]} 38. g4 {[%clk 0:00:04.8]} 38... Qe1
{[%clk 0:00:05]} 39. Re2 {[%clk 0:00:04.2]} 39... Qc3 {[%clk 0:00:05.5]} 40. Re6
{[%clk 0:00:03.1]} 40... Qxd3 {[%clk 0:00:05.6]} 41. Nxd3 {[%clk 0:00:04]} 41...
Rfe8 {[%clk 0:00:05.7]} 42. Rxa6 {[%clk 0:00:01.7]} 42... Re3 {[%clk 0:00:05.1]}
43. Kf1 {[%clk 0:00:02.2]} 43... Rxd3 {[%clk 0:00:05.2]} 44. b4 {[%clk
0:00:02.7]} 44... Rc3 {[%clk 0:00:05.2]} 45. b5 {[%clk 0:00:03.2]} 45... d3
{[%clk 0:00:05.6]} 46. a4 {[%clk 0:00:03.1]} 46... d2 {[%clk 0:00:06]} 47. b6
{[%clk 0:00:04]} 47... d1=Q+ {[%clk 0:00:06.2]} 48. Kf2 {[%clk 0:00:04.4]} 48...
Qd2+ {[%clk 0:00:06.2]} 49. Kf1 {[%clk 0:00:04]} 49... Rc1# {[%clk 0:00:07.1]}
0-1